fUSD/lending_fUSD_20250911
["ID","MTS","AMOUNT","RATE_DAILY","PERIOD"]
[384891589,1757620255144,-500.0,0.00027397,2]
[384891590,1757620255153,-151.0,0.00027397,7]
[384891591,1757620255162,-150.0,0.00027397,2]
[384891592,1757620255171,-150.0,0.00027397,2]
[384891593,1757620255182,-287.242596,0.00027397,7]
[384891594,1757620255192,-2401.57,0.00027397,7]
[384891595,1757620255201,-400.0,0.00027397,7]
[384891596,1757620255211,-400.0,0.00027397,7]
[384891597,1757620255220,-415.26532215,0.00027397,7]
[384891598,1757620255230,-400.0,0.00027397,7]
[384891599,1757620255239,-500.0,0.00027397,2]
[384891600,1757620255248,-400.0,0.00027397,7]
[384891601,1757620255259,-151.0,0.00027397,7]
[384891602,1757620255268,-151.0,0.00027397,7]
[384891603,1757620255276,-2850.14,0.00027397,7]
[384891604,1757620255285,-400.0,0.00027397,7]
[384891605,1757620255294,-400.0,0.00027397,7]
[384891606,1757620255303,-400.0,0.00027397,7]
[384891607,1757620255312,-1561.88,0.00027397,7]
[384891608,1757620255321,-1051.2,0.00027397,7]
[384891609,1757620255331,-1989.47,0.00027397,7]
[384891610,1757620255342,-400.0,0.00027397,7]
[384891611,1757620255353,-1630.42,0.00027397,7]
[384891612,1757620255364,-400.0,0.00027397,7]
[384891613,1757620255374,-401.23446491,0.00027397,7]
[384891614,1757620255383,-756.74,0.00027397,7]
[384891615,1757620255392,-400.0,0.00027397,7]
[384891616,1757620255401,-2419.66,0.00027397,7]
[384891617,1757620255410,-400.0,0.00027397,7]
[384891618,1757620255419,-400.0,0.00027397,7]
[384891619,1757620255428,-400.0,0.00027397,7]
[384891620,1757620255437,-896.33,0.00027397,7]
[384891621,1757620255447,-4056.2,0.00027397,7]
[384891622,1757620255455,-400.0,0.00027397,7]
[384891623,1757620255464,-151.0,0.00027397,7]
[384891624,1757620255473,-400.0,0.00027397,7]
[384891625,1757620255482,-151.0,0.00027397,7]
[384891626,1757620255492,-400.0,0.00027397,7]
[384891627,1757620255500,-151.0,0.00027397,7]
[384891628,1757620255510,-400.0,0.00027397,7]
[384891629,1757620255519,-151.0,0.00027397,7]
[384891630,1757620255527,-151.0,0.00027397,7]
[384891631,1757620255537,-151.0,0.00027397,7]
[384891632,1757620255546,-400.0,0.00027397,7]
[384891633,1757620255556,-2804.21,0.00027397,7]
[384891634,1757620255565,-462.64,0.00027397,7]
[384891635,1757620255577,-1829.37,0.00027397,7]
[384891636,1757620255591,-2065.55,0.00027397,7]
[384891637,1757620255602,-400.0,0.00027397,7]
[384891638,1757620255612,-400.0,0.00027397,7]
[384891639,1757620255622,-2150.65,0.00027397,7]
[384891640,1757620255632,-151.0,0.00027397,7]
[384891641,1757620255642,-400.0,0.00027397,7]
[384891642,1757620255654,-151.0,0.00027397,7]
[384891643,1757620255663,-151.0,0.00027397,7]
[384891644,1757620255674,-2102.28,0.00027397,7]
[384891645,1757620255683,-151.0,0.00027397,7]
[384891646,1757620255693,-400.0,0.00027397,7]
[384891647,1757620255702,-1196.73,0.00027397,7]
[384891648,1757620255712,-3613.45,0.00027397,7]
[384891649,1757620255724,-579.66,0.00027397,7]
[384891650,1757620255733,-2732.84,0.00027397,7]
[384891651,1757620255743,-406.09,0.00027397,7]
[384891652,1757620255752,-151.0,0.00027397,7]
[384891653,1757620255762,-400.0,0.00027397,7]
[384891654,1757620255771,-465.09,0.00027397,7]
[384891655,1757620255781,-400.0,0.00027397,7]
[384891656,1757620255793,-151.0,0.00027397,7]
[384891657,1757620255803,-1095.33,0.00027397,7]
[384891658,1757620255812,-151.0,0.00027397,7]
[384891659,1757620255821,-151.0,0.00027397,7]
[384891660,1757620255831,-151.0,0.00027397,7]
[384891661,1757620255840,-615.1,0.00027397,7]
[384891662,1757620255849,-404.61647955,0.00027397,7]
[384891663,1757620255858,-478.38,0.00027397,7]
[384891664,1757620255866,-400.0,0.00027397,7]
[384891665,1757620255876,-151.0,0.00027397,7]
[384891666,1757620255885,-151.0,0.00027397,7]
[384891667,1757620255894,-2519.88,0.00027397,7]
[384891668,1757620255903,-2973.76,0.00027397,7]
[384891669,1757620255913,-400.0,0.00027397,7]
[384891670,1757620255922,-151.0,0.00027397,7]
[384891671,1757620255931,-585.47,0.00027397,7]
[384891672,1757620255940,-151.0,0.00027397,7]
[384891673,1757620255949,-151.0,0.00027397,7]
[384891674,1757620255958,-151.0,0.00027397,7]
[384891675,1757620255967,-400.0,0.00027397,7]
[384891676,1757620255976,-1478.83,0.00027397,7]
[384891677,1757620255985,-400.0,0.00027397,7]
[384891678,1757620255994,-400.0,0.00027397,7]
[384891679,1757620256005,-249.408982,0.00027397,7]
[384891680,1757620256015,-543.52,0.00027397,7]
[384891681,1757620256024,-1231.32,0.00027397,7]
[384891682,1757620256033,-249.408982,0.00027397,7]
[384891683,1757620256042,-400.0,0.00027397,7]
[384891684,1757620256052,-249.408982,0.00027397,7]
[384891685,1757620256063,-400.0,0.00027397,7]
[384891686,1757620256072,-249.408982,0.00027397,7]
[384891687,1757620256081,-249.408982,0.00027397,7]
[384891688,1757620256091,-249.408982,0.00027397,7]
[384891689,1757620256101,-249.408982,0.00027397,7]
[384891690,1757620256111,-679.36,0.00027397,7]
[384891691,1757620256122,-249.408982,0.00027397,7]
[384891692,1757620256131,-406.24,0.00027397,7]
[384891693,1757620256140,-249.408982,0.00027397,7]
[384891694,1757620256149,-1970.35,0.00027397,7]
[384891695,1757620256157,-2065.49,0.00027397,7]
[384891696,1757620256166,-249.408982,0.00027397,7]
[384891697,1757620256176,-249.408982,0.00027397,7]
[384891698,1757620256185,-2409.91,0.00027397,7]
[384891699,1757620256194,-420.66786236,0.00027397,7]
[384891700,1757620256203,-249.408982,0.00027397,7]
[384891701,1757620256211,-750.22,0.00027397,7]
[384891702,1757620256220,-249.408982,0.00027397,7]
[384891703,1757620256229,-400.0,0.00027397,7]
[384891704,1757620256237,-249.408982,0.00027397,7]
[384891705,1757620256246,-400.0,0.00027397,7]
[384891706,1757620256256,-151.0,0.00027397,7]
[384891707,1757620256264,-151.0,0.00027397,7]
[384891708,1757620256273,-249.408982,0.00027397,7]
[384891709,1757620256282,-2254.47,0.00027397,7]
[384891710,1757620256290,-4377.18,0.00027397,7]
[384891711,1757620256299,-249.408982,0.00027397,7]
[384891712,1757620256308,-2180.35,0.00027397,7]
[384891713,1757620256317,-1140.48,0.00027397,7]
[384891714,1757620256327,-249.408982,0.00027397,7]
[384891715,1757620256337,-1983.44,0.00027397,7]
[384891716,1757620256348,-249.408982,0.00027397,7]
[384891717,1757620256357,-400.0,0.00027397,7]
[384891718,1757620256367,-400.0,0.00027397,7]
[384891719,1757620256375,-249.408982,0.00027397,7]
[384891720,1757620256386,-249.40899,0.00027397,7]
[384891721,1757620256396,-400.0,0.00027397,7]
[384891722,1757620256406,-400.0,0.00027397,7]
[384891723,1757620256415,-1824.04,0.00027397,7]
[384891724,1757620256426,-400.0,0.00027397,7]
[384891725,1757620256435,-400.0,0.00027397,7]
[384891726,1757620256445,-1928.03,0.00027397,7]
[384891727,1757620256454,-400.0,0.00027397,7]
[384891728,1757620256463,-400.0,0.00027397,7]
[384891729,1757620256471,-400.0,0.00027397,7]
[384891730,1757620256480,-1404.66,0.00027397,7]
[384891731,1757620256489,-1944.39,0.00027397,7]
[384891732,1757620256498,-1105.17,0.00027397,7]
[384891733,1757620256507,-999.36,0.00027397,7]
[384891734,1757620256516,-400.0,0.00027397,7]
[384891735,1757620256524,-151.0,0.00027397,7]
[384891736,1757620256533,-400.0,0.00027397,7]
[384891737,1757620256542,-153.48237,0.00027397,7]
[384891738,1757620256551,-667.16,0.00027397,7]
[384891739,1757620256560,-1734.1,0.00027397,7]
[384891740,1757620256569,-400.0,0.00027397,7]
[384891741,1757620256578,-400.0,0.00027397,7]
[384891742,1757620256588,-400.0,0.00027397,7]
[384891743,1757620256597,-609.91,0.00027397,7]
[384891744,1757620256606,-2360.18,0.00027397,7]
[384891745,1757620256615,-400.0,0.00027397,7]
[384891746,1757620256624,-400.0,0.00027397,7]
[384891747,1757620256633,-1451.72,0.00027397,7]
[384891748,1757620256642,-2040.89,0.00027397,7]
[384891749,1757620256651,-2370.54,0.00027397,7]
[384891750,1757620256660,-1182.57,0.00027397,7]
[384891751,1757620256670,-400.0,0.00027397,7]
[384891752,1757620256679,-6631.42,0.00027397,7]
[384891753,1757620256688,-400.0,0.00027397,7]
[384891754,1757620256697,-1865.56,0.00027397,7]
[384891755,1757620256706,-400.0,0.00027397,7]
[384891756,1757620256717,-400.0,0.00027397,7]
[384891757,1757620256727,-1240.37,0.00027397,7]
[384891758,1757620256736,-400.0,0.00027397,7]
[384891759,1757620256746,-400.0,0.00027397,7]
[384891760,1757620256755,-434.59,0.00027397,7]
[384891761,1757620256764,-151.0,0.00027397,7]
[384891762,1757620256774,-4240.55,0.00027397,7]
[384891763,1757620256783,-151.0,0.00027397,7]
[384891764,1757620256793,-151.0,0.00027397,7]
[384891765,1757620256803,-1289.83,0.00027397,7]
[384891766,1757620256813,-151.0,0.00027397,7]
[384891767,1757620256822,-944.8,0.00027397,7]
[384891768,1757620256831,-151.0,0.00027397,7]
[384891769,1757620256840,-400.0,0.00027397,7]
[384891770,1757620256849,-151.0,0.00027397,7]
[384891771,1757620256859,-151.0,0.00027397,7]
[384891772,1757620256869,-400.0,0.00027397,7]
[384891773,1757620256879,-195.987712,0.00027397,7]
[384891774,1757620256889,-2546.91,0.00027397,7]
[384891775,1757620256898,-3992.39,0.00027397,7]
[384891776,1757620256906,-2051.82,0.00027397,7]
[384891777,1757620256915,-400.0,0.00027397,7]
[384891778,1757620256925,-1716.24,0.00027397,7]
[384891779,1757620256934,-2163.07,0.00027397,7]
[384891780,1757620256943,-400.0,0.00027397,7]
[384891781,1757620256951,-984.79,0.00027397,7]
[384891782,1757620256960,-654.89,0.00027397,7]
[384891783,1757620256970,-400.0,0.00027397,7]
[384891784,1757620256979,-400.0,0.00027397,7]
[384891785,1757620256988,-409.54022821,0.00027397,7]
[384891786,1757620256996,-400.0,0.00027397,7]
[384891787,1757620257006,-400.0,0.00027397,7]
[384891788,1757620257015,-2169.65,0.00027397,7]
[384891789,1757620257025,-5660.11,0.00027397,7]
[384891790,1757620257034,-400.0,0.00027397,7]
[384891791,1757620257045,-400.0,0.00027397,7]
[384891792,1757620257055,-612.32,0.00027397,7]
[384891793,1757620257066,-400.0,0.00027397,7]
[384891794,1757620257076,-400.0,0.00027397,7]
[384891795,1757620257087,-2024.77,0.00027397,7]
[384891796,1757620257097,-647.03,0.00027397,7]
[384891797,1757620257107,-2434.91,0.00027397,7]
[384891798,1757620257116,-400.0,0.00027397,7]
[384891799,1757620257125,-1861.05,0.00027397,7]
[384891800,1757620257134,-531.39,0.00027397,7]
[384891801,1757620257144,-151.0,0.00027397,7]
[384891802,1757620257153,-400.0,0.00027397,7]
[384891803,1757620257163,-1348.2,0.00027397,7]
[384891804,1757620257172,-151.0,0.00027397,7]
[384891805,1757620257182,-239.88,0.00027397,7]
[384891806,1757620257191,-400.0,0.00027397,7]
[384891807,1757620257200,-1899.05,0.00027397,7]
[384891808,1757620257209,-400.0,0.00027397,7]
[384891809,1757620257218,-400.0,0.00027397,7]
[384891810,1757620257227,-1592.43,0.00027397,7]
[384891811,1757620257239,-400.0,0.00027397,7]
[384891812,1757620257249,-3136.56,0.00027397,7]
[384891813,1757620257259,-400.0,0.00027397,7]
[384891814,1757620257269,-151.0,0.00027397,7]
[384891815,1757620257280,-159.709553,0.00027397,7]
[384891816,1757620257291,-3473.46,0.00027397,7]
[384891817,1757620257301,-400.0,0.00027397,7]
[384891818,1757620257311,-152.296554,0.00027397,7]
[384891819,1757620257320,-159.709553,0.00027397,7]
[384891820,1757620257330,-1468.72,0.00027397,7]
[384891821,1757620257339,-159.709553,0.00027397,7]
[384891822,1757620257349,-400.0,0.00027397,2]
[384891823,1757620257358,-159.709553,0.00027397,7]
[384891824,1757620257368,-159.709553,0.00027397,7]
[384891825,1757620257379,-400.0,0.00027397,7]
[384891826,1757620257388,-500.0,0.00027397,2]
[384891827,1757620257398,-2225.3,0.00027397,7]
[384891828,1757620257410,-159.709553,0.00027397,7]
[384891829,1757620257419,-159.709553,0.00027397,7]
[384891830,1757620257428,-2313.26,0.00027397,7]
[384891831,1757620257439,-159.709553,0.00027397,7]
[384891832,1757620257449,-159.709553,0.00027397,7]
[384891833,1757620257458,-150.0,0.00027397,2]
[384891834,1757620257467,-539.2,0.00027397,7]
[384891835,1757620257475,-159.709553,0.00027397,7]
[384891836,1757620257484,-3127.31,0.00027397,7]
[384891837,1757620257494,-159.709553,0.00027397,7]
[384891838,1757620257503,-159.709553,0.00027397,7]
[384891839,1757620257513,-151.0,0.00027397,7]
[384891840,1757620257522,-159.709553,0.00027397,7]
[384891841,1757620257531,-151.0,0.00027397,7]
[384891842,1757620257541,-400.0,0.00027397,7]
[384891843,1757620257550,-159.709553,0.00027397,7]
[384891844,1757620257560,-1900.6,0.00027397,7]
[384891845,1757620257570,-400.0,0.00027397,7]
[384891846,1757620257579,-1440.7,0.00027397,7]
[384891847,1757620257589,-159.709553,0.00027397,7]
[384891848,1757620257599,-151.0,0.00027397,7]
[384891849,1757620257608,-1338.68,0.00027397,7]
[384891850,1757620257618,-159.709553,0.00027397,7]
[384891851,1757620257628,-265.011996,0.00027397,7]
[384891852,1757620257637,-400.0,0.00027397,7]
[384891853,1757620257647,-159.709553,0.00027397,7]
[384891854,1757620257658,-159.709553,0.00027397,7]
[384891855,1757620257667,-1867.69,0.00027397,7]
[384891856,1757620257677,-159.709553,0.00027397,7]
[384891857,1757620257686,-159.709557,0.00027397,7]
[384891858,1757620257695,-400.0,0.00027397,7]
[384891859,1757620257704,-3099.92,0.00027397,7]
[384891860,1757620257713,-623.03,0.00027397,7]
[384891861,1757620257727,-151.0,0.00027397,7]
[384891862,1757620257736,-151.0,0.00027397,7]
[384891863,1757620257745,-400.0,0.00027397,7]
[384891864,1757620257754,-151.0,0.00027397,7]
[384891865,1757620257764,-400.0,0.00027397,7]
[384891866,1757620257773,-2289.53,0.00027397,7]
[384891867,1757620257782,-151.0,0.00027397,7]
[384891868,1757620257792,-400.0,0.00027397,7]
[384891869,1757620257801,-400.0,0.00027397,7]
[384891870,1757620257810,-400.0,0.00027397,7]
[384891871,1757620257819,-151.0,0.00027397,7]
[384891872,1757620257828,-151.0,0.00027397,7]
[384891873,1757620257837,-405.77,0.00027397,7]
[384891874,1757620257847,-151.0,0.00027397,7]
[384891875,1757620257856,-2328.02,0.00027397,7]
[384891876,1757620257865,-151.0,0.00027397,7]
[384891877,1757620257874,-3802.13,0.00027397,7]
[384891878,1757620257884,-8168.93,0.00027397,7]
[384891879,1757620257893,-3192.12,0.00027397,7]
[384891880,1757620257902,-400.0,0.00027397,7]
[384891881,1757620257911,-151.0,0.00027397,7]
[384891882,1757620257920,-2081.13,0.00027397,7]
[384891883,1757620257930,-151.0,0.00027397,7]
[384891884,1757620257939,-151.0,0.00027397,7]
[384891885,1757620257948,-151.0,0.00027397,7]
[384891886,1757620257957,-151.935087,0.00027397,7]
[384891887,1757620257966,-151.0,0.00027397,7]
[384891888,1757620257975,-151.0,0.00027397,7]
[384891889,1757620257983,-151.0,0.00027397,7]
[384891890,1757620257993,-151.0,0.00027397,7]
[384891891,1757620258002,-1957.22,0.00027397,7]
[384891892,1757620258011,-400.0,0.00027397,7]
[384891893,1757620258020,-151.0,0.00027397,7]
[384891894,1757620258030,-2414.59,0.00027397,7]
[384891895,1757620258039,-151.0,0.00027397,7]
[384891896,1757620258048,-400.0,0.00027397,7]
[384891897,1757620258057,-400.0,0.00027397,7]
[384891898,1757620258066,-151.840616,0.00027397,7]
[384891899,1757620258075,-151.0,0.00027397,7]
[384891900,1757620258084,-236.037191,0.00027397,7]
[384891901,1757620258093,-1011.46,0.00027397,7]
[384891902,1757620258103,-1923.9,0.00027397,7]
[384891903,1757620258112,-154.662874,0.00027397,7]
[384891904,1757620258121,-400.0,0.00027397,7]
[384891905,1757620258131,-400.0,0.00027397,7]
[384891906,1757620258140,-1927.06,0.00027397,7]
[384891907,1757620258149,-1206.23,0.00027397,7]
[384891908,1757620258158,-538.55,0.00027397,7]
[384891909,1757620258167,-151.0,0.00027397,7]
[384891910,1757620258177,-400.0,0.00027397,7]
[384891911,1757620258187,-151.0,0.00027397,7]
[384891912,1757620258196,-151.0,0.00027397,7]
[384891913,1757620258206,-515.77,0.00027397,7]
[384891914,1757620258215,-151.0,0.00027397,7]
[384891915,1757620258224,-1585.5,0.00027397,7]
[384891916,1757620258233,-400.0,0.00027397,7]
[384891917,1757620258242,-151.0,0.00027397,7]
[384891918,1757620258251,-400.0,0.00027397,7]
[384891919,1757620258260,-400.0,0.00027397,7]
[384891920,1757620258268,-2086.74,0.00027397,7]
[384891921,1757620258278,-1000.0,0.00027397,7]
[384891922,1757620258501,-400.0,0.00027397,7]
[384891923,1757620258512,-400.0,0.00027397,7]
[384891924,1757620258521,-872.26,0.00027397,7]
[384891925,1757620258530,-1808.09,0.00027397,7]
[384891926,1757620258539,-400.0,0.00027397,7]
[384891927,1757620258548,-151.197134,0.00027397,7]
[384891928,1757620258558,-340.62857928,0.00027397,7]
[384891929,1757620258567,-1235.05,0.00027397,7]
[384891930,1757620258576,-400.0,0.00027397,7]
[384891931,1757620258586,-3298.29,0.00027397,7]
[384891932,1757620258595,-3364.63,0.00027397,7]
[384891933,1757620258604,-400.0,0.00027397,7]
[384891934,1757620258614,-151.583565,0.00027397,7]
[384891935,1757620258623,-1616.25,0.00027397,7]
[384891936,1757620258632,-400.0,0.00027397,7]
[384891937,1757620258640,-706.23,0.00027397,7]
[384891938,1757620258649,-400.0,0.00027397,7]
[384891939,1757620258659,-513.03257335,0.00027397,7]
[384891940,1757620258668,-1879.67,0.00027397,7]
[384891941,1757620258678,-421.17,0.00027397,7]
[384891942,1757620258687,-400.0,0.00027397,7]
[384891943,1757620258696,-400.0,0.00027397,7]
[384891944,1757620258705,-7121.58,0.00027397,7]
[384891945,1757620258716,-151.0,0.00027397,7]
[384891946,1757620258727,-323.70324435,0.00027397,7]
[384891947,1757620258736,-151.0,0.00027397,7]
[384891948,1757620258746,-2297.08,0.00027397,7]
[384891949,1757620258754,-151.0,0.00027397,7]
[384891950,1757620258764,-2448.08,0.00027397,7]
[384891951,1757620258773,-400.0,0.00027397,7]
[384891952,1757620258782,-151.0,0.00027397,7]
[384891953,1757620258792,-151.0,0.00027397,7]
[384891954,1757620258801,-290.978076,0.00027397,7]
[384891955,1757620258810,-637.88,0.00027397,7]
[384891956,1757620258819,-400.0,0.00027397,7]
[384891957,1757620258828,-434.53,0.00027397,7]
[384891958,1757620258837,-2037.59,0.00027397,7]
[384891959,1757620258846,-9996.04,0.00027397,7]
[384891960,1757620258855,-623.85,0.00027397,7]
[384891961,1757620258864,-1348.26,0.00027397,7]
[384891962,1757620258874,-1348.26,0.00027397,7]
[384891963,1757620258883,-1348.26,0.00027397,7]
[384891964,1757620258892,-1348.26,0.00027397,7]
[384891965,1757620258901,-151.0,0.00027397,7]
[384891966,1757620258910,-1749.29,0.00027397,7]
[384891967,1757620258919,-1348.26,0.00027397,7]
[384891968,1757620258929,-2018.76,0.00027397,7]
[384891969,1757620258938,-400.0,0.00027397,7]
[384891970,1757620258947,-151.0,0.00027397,7]
[384891971,1757620258957,-1348.26,0.00027397,7]
[384891972,1757620258966,-1749.43,0.00027397,7]
[384891973,1757620258976,-1348.26,0.00027397,7]
[384891974,1757620258986,-151.0,0.00027397,7]
[384891975,1757620258996,-1348.26,0.00027397,7]
[384891976,1757620259006,-151.0,0.00027397,7]
[384891977,1757620259015,-1210.08,0.00027397,7]
[384891978,1757620259025,-1348.26,0.00027397,7]
[384891979,1757620259035,-151.0,0.00027397,7]
[384891980,1757620259045,-1348.26,0.00027397,7]
[384891981,1757620259055,-479.52,0.00027397,7]
[384891982,1757620259065,-151.0,0.00027397,7]
[384891983,1757620259075,-1348.26,0.00027397,7]
[384891984,1757620259084,-151.0,0.00027397,7]
[384891985,1757620259093,-151.0,0.00027397,7]
[384891986,1757620259103,-400.0,0.00027397,7]
[384891987,1757620259113,-151.0,0.00027397,7]
[384891988,1757620259123,-151.0,0.00027397,7]
[384891989,1757620259133,-5456.03,0.00027397,7]
[384891990,1757620259143,-151.0,0.00027397,7]
[384891991,1757620259154,-3534.98,0.00027397,7]
[384891992,1757620259164,-151.0,0.00027397,7]
[384891993,1757620259177,-400.0,0.00027397,7]
[384891994,1757620259187,-400.0,0.00027397,7]
[384891995,1757620259197,-500.0,0.00027397,7]
[384891996,1757620259208,-400.0,0.00027397,7]
[384891997,1757620259217,-500.0,0.00027397,7]
[384891998,1757620259227,-500.0,0.00027397,7]
[384891999,1757620259237,-1126.09,0.00027397,7]
[384892000,1757620259246,-500.0,0.00027397,7]
[384892001,1757620259256,-500.0,0.00027397,7]
[384892002,1757620259265,-500.0,0.00027397,7]
[384892003,1757620259275,-500.0,0.00027397,7]
[384892004,1757620259284,-400.0,0.00027397,7]
[384892005,1757620259293,-400.0,0.00027397,7]
[384892006,1757620259302,-400.0,0.00027397,7]
[384892007,1757620259311,-400.0,0.00027397,7]
[384892008,1757620259321,-2293.03,0.00027397,7]
[384892009,1757620259331,-400.0,0.00027397,7]
[384892010,1757620259340,-400.0,0.00027397,7]
[384892011,1757620259350,-400.0,0.00027397,7]
[384892012,1757620259359,-400.0,0.00027397,7]
[384892013,1757620259369,-920.12,0.00027397,7]
[384892014,1757620259379,-529.74,0.00027397,7]
[384892015,1757620259388,-400.0,0.00027397,7]
[384892016,1757620259398,-1721.29,0.00027397,7]
[384892017,1757620259407,-630.46,0.00027397,7]
[384892018,1757620259417,-400.0,0.00027397,7]
[384892019,1757620259428,-400.0,0.00027397,7]
[384892020,1757620259438,-400.0,0.00027397,7]
[384892021,1757620259447,-861.8,0.00027397,7]
[384892022,1757620259456,-400.0,0.00027397,7]
[384892023,1757620259466,-791.87,0.00027397,7]
[384892024,1757620259475,-400.0,0.00027397,7]
[384892025,1757620259484,-480.24,0.00027397,7]
[384892026,1757620259494,-400.0,0.00027397,7]
[384892027,1757620259503,-400.0,0.00027397,7]
[384892028,1757620259513,-400.0,0.00027397,7]
[384892029,1757620259522,-2316.47,0.00027397,7]
[384892030,1757620259531,-2281.47,0.00027397,7]
[384892031,1757620259541,-400.0,0.00027397,7]
[384892032,1757620259551,-2398.95,0.00027397,7]
[384892033,1757620259561,-400.0,0.00027397,7]
[384892034,1757620259571,-400.0,0.00027397,7]
[384892035,1757620259581,-400.0,0.00027397,7]
[384892036,1757620259590,-400.0,0.00027397,7]
[384892037,1757620259600,-2322.99,0.00027397,7]
[384892038,1757620259609,-930.83,0.00027397,7]
[384892039,1757620259619,-400.0,0.00027397,7]
[384892040,1757620259628,-448.65,0.00027397,7]
[384892041,1757620259638,-1209.6,0.00027397,7]
[384892042,1757620259648,-400.0,0.00027397,7]
[384892043,1757620259657,-1859.43,0.00027397,7]
[384892044,1757620259666,-400.0,0.00027397,7]
[384892045,1757620259676,-837.38,0.00027397,7]
[384892046,1757620259686,-2477.71,0.00027397,7]
[384892047,1757620259695,-400.0,0.00027397,2]
[384892048,1757620259705,-400.0,0.00027397,7]
[384892049,1757620259715,-1517.85,0.00027397,7]
[384892050,1757620259728,-151.0,0.00027397,7]
[384892051,1757620259737,-151.0,0.00027397,7]
[384892052,1757620259747,-213.381251,0.00027397,7]
[384892053,1757620259757,-151.0,0.00027397,7]
[384892054,1757620259767,-1494.16,0.00027397,7]
[384892055,1757620259776,-151.0,0.00027397,7]
[384892056,1757620259786,-2569.54,0.00027397,7]
[384892057,1757620259796,-151.0,0.00027397,7]
[384892058,1757620259805,-151.0,0.00027397,7]
[384892059,1757620259815,-2342.67,0.00027397,7]
[384892060,1757620259824,-151.0,0.00027397,7]
[384892061,1757620259833,-2018.05,0.00027397,7]
[384892062,1757620259844,-400.0,0.00027397,7]
[384892063,1757620259853,-151.0,0.00027397,7]
[384892064,1757620259862,-151.0,0.00027397,7]
[384892065,1757620259871,-151.0,0.00027397,7]
[384892066,1757620259881,-151.0,0.00027397,7]
[384892067,1757620259890,-400.0,0.00027397,7]
[384892068,1757620259899,-151.0,0.00027397,7]
[384892069,1757620259909,-258.524457,0.00027397,7]
[384892070,1757620259918,-400.0,0.00027397,7]
[384892071,1757620259928,-153.34222623,0.00027397,2]
[384892072,1757620259938,-1111.81,0.00027397,7]
[384892073,1757620259947,-400.0,0.00027397,7]
[384892074,1757620259957,-1929.55,0.00027397,7]
[384892075,1757620259966,-400.0,0.00027397,7]
[384892076,1757620259975,-151.0,0.00027397,7]
[384892077,1757620259985,-151.0,0.00027397,7]
[384892078,1757620259994,-1345.39,0.00027397,7]
[384892079,1757620260003,-2287.1,0.00027397,7]
[384892080,1757620260013,-726.9,0.00027397,7]
[384892081,1757620260022,-400.0,0.00027397,7]
[384892082,1757620260032,-2506.02,0.00027397,7]
[384892083,1757620260042,-400.0,0.00027397,7]
[384892084,1757620260052,-400.0,0.00027397,7]
[384892085,1757620260062,-400.0,0.00027397,7]
[384892086,1757620260073,-10871.77,0.00027397,7]
[384892087,1757620260082,-400.0,0.00027397,7]
[384892088,1757620260091,-858.68,0.00027397,7]